bitfinex/quotes_ETHUSD_20220213
["timestamp","ask_amount","ask_price","bid_price","bid_amount"]
[1644792842447,0.50732594,2903.1,2902.7,0.01132785]
[1644792843446,0.496,2903.1,2902.1,1.29199999]
[1644792843648,0.50732615,2903.1,2902.8,0.01132767]
[1644792844692,0.496,2903.1,2902.2,0.3]
[1644792844888,0.50732625,2903.1,2902.8,0.01132758]
[1644792845889,0.496,2903.1,2902.1,1.29199999]
[1644792846090,0.50732625,2903.1,2902.8,0.01132758]
[1644792847090,0.496,2903.1,2902.3,1.72317]
[1644792847290,0.50732625,2903.1,2902.8,0.01132758]
[1644792848143,0.496,2903.1,2902.5,0.8616]
[1644792848338,0.496,2903.1,2902.5,0.3]
[1644792848534,0.50732625,2903.1,2902.8,0.01132758]
[1644792848734,5.50732625,2903.1,2902.8,0.01132758]
[1644792849335,5.50732625,2903.1,2902.6,0.3]
[1644792849336,5.496,2903.1,2902.6,0.3]
[1644792849534,5.496,2903.1,2902.1,0.99199999]
[1644792849735,5.50732625,2903.1,2902.8,0.01132758]
[1644792850437,0.50732625,2903.1,2902.8,0.01132758]
[1644792850835,2.36915625,2903.1,2902.8,0.01132758]
[1644792851035,5.0,2902.9,2902.8,0.01132758]
[1644792851237,5.496,2902.9,2902.8,0.01132758]
[1644792851890,5.496,2902.9,2902.1,1.29199999]
[1644792852090,5.496,2902.9,2902.7,0.01132776]
[1644792852590,0.496,2902.9,2902.7,0.01132776]
[1644792852995,0.2585,2903.2,2902.2,3.5]
[1644792853192,0.2585,2903.2,2902.3,0.1721]
[1644792853390,0.01132594,2903.1,2902.7,0.01132785]
[1644792854192,0.01132594,2903.1,2902.2,0.1721]
[1644792854193,0.2585,2903.2,2902.2,0.1721]
[1644792854792,0.2585,2903.2,2902.4,0.86159]
[1644792854995,0.2585,2903.2,2902.5,0.1721]
[1644792855194,0.2585,2903.2,2902.3,2.02322]
[1644792856136,0.2585,2903.2,2902.2,3.75053835]
[1644792856137,1.12021,2903.2,2902.2,3.75053835]
[1644792856337,4.62021,2903.2,2902.2,3.53428433]
[1644792856538,4.62021,2903.2,2902.2,0.3]
[1644792856739,4.62021,2903.2,2902.1,1.29199999]
[1644792856944,4.62021,2903.2,2902.6,0.00528528]
[1644792856945,5.0,2903.1,2902.6,0.00528528]
[1644792857140,1.35776,2903.0,2902.6,0.00528528]
[1644792857739,1.35776,2903.0,2902.1,0.99199999]
[1644792857740,5.0,2902.7,2902.1,0.99199999]
[1644792858040,1.496,2902.6,2902.1,1.03727319]
[1644792858239,2.35795,2902.6,2902.1,1.33727319]
[1644792858838,3.2199159,2902.6,2902.1,1.03727319]
[1644792859038,3.2199159,2902.6,2902.1,0.99199999]
[1644792859240,0.86197,2902.5,2902.2,0.01131707]
[1644792859491,1.65797,2902.5,2902.2,0.01131707]
[1644792859689,5.0,2902.4,2902.2,0.01131707]
[1644792859889,1.496,2902.3,2902.2,0.01131707]
[1644792860089,4.76545475,2902.3,2902.2,0.01131707]
[1644792860290,0.86225,2902.2,2902.1,0.99199999]
[1644792860489,1.7245,2902.0,2901.4,0.1721]
[1644792860688,9.08820701,2902.2,2901.4,0.1721]
[1644792860689,5.0,2901.5,2901.4,0.1721]
[1644792860888,5.496,2901.5,2901.4,0.1721]
[1644792861086,6.496,2901.5,2901.4,0.1721]
[1644792861294,2.53052,2901.5,2901.3,0.8626]
[1644792861494,2.05,2901.4,2900.3,0.1723]
[1644792861689,2.05,2901.4,2900.1,0.1723]
[1644792861690,5.0,2900.9,2900.1,0.1723]
[1644792861888,5.0,2900.9,2899.8,3.0609]
[1644792861889,1.496,2900.8,2900.0,0.1723]
[1644792862092,6.95587787,2900.9,2900.1,1.46739575]
[1644792862290,0.86252,2900.7,2899.7,0.1723]
[1644792862491,0.496,2900.6,2899.8,1.46749657]
[1644792862691,4.7336228,2900.6,2899.9,1.46749657]
[1644792862891,4.7336228,2900.6,2899.5,0.1723]
[1644792863146,4.7336228,2900.6,2899.6,1.46753602]
[1644792863340,0.86254,2900.4,2899.6,1.46753602]
[1644792863538,3.55147058,2900.3,2899.7,0.1724]
[1644792863739,0.496,2900.2,2899.2,0.1724]
[1644792864339,3.85107543,2900.2,2899.2,0.1724]
[1644792864743,3.85107543,2900.2,2899.2,0.4724]
[1644792864939,4.71373543,2900.2,2899.2,0.4724]
[1644792865140,10.01373543,2900.2,2899.2,0.4724]
[1644792865342,1.0,2900.1,2899.6,0.01129424]
[1644792865538,4.24465783,2900.0,2899.6,0.01129424]
[1644792865940,0.86268,2899.9,2899.6,0.01129424]
[1644792866139,4.17663506,2899.8,2899.6,0.01129424]
[1644792866339,5.54883642,2899.7,2899.2,0.1724]
[1644792866542,5.54883642,2899.7,2899.2,0.21758336]
[1644792866543,5.796,2899.6,2899.2,0.21758336]
[1644792866738,3.41351913,2899.5,2899.2,0.21758336]
[1644792866988,0.496,2899.4,2899.2,0.21758336]
[1644792867189,0.86287,2899.3,2899.2,0.21758336]
[1644792867393,0.496,2899.3,2899.2,0.04518336]
[1644792867591,0.496,2899.3,2898.7,0.1724]
[1644792867790,3.38175675,2899.2,2899.1,0.01129505]
[1644792867990,1.2376,2899.2,2899.1,0.01129505]
[1644792868792,4.54636347,2899.2,2898.3,0.00370815]
[1644792868993,4.54636347,2899.2,2899.0,0.01129524]
[1644792868994,5.40930347,2899.2,2899.0,0.01129524]
[1644792869194,3.41311847,2899.1,2899.0,0.01129524]
[1644792869392,5.20911847,2899.1,2899.0,0.01129524]
[1644792869593,4.20911847,2899.1,2899.0,0.01129524]
[1644792869997,0.86309,2898.7,2897.8,0.17610815]
[1644792870193,0.86309,2898.7,2898.5,0.02023402]
[1644792870745,0.496,2898.6,2898.5,0.02023402]
[1644792871139,0.496,2898.6,2897.8,1.03911815]
[1644792871739,0.496,2898.6,2897.9,0.3]
[1644792871939,0.496,2898.6,2898.0,0.00370815]
[1644792873738,0.496,2898.6,2898.2,0.0112831]
[1644792874240,1.35909,2898.6,2898.2,0.0112831]
[1644792874494,3.67480525,2898.5,2898.2,0.0112831]
[1644792874692,3.67480525,2898.5,2897.7,0.00370815]
[1644792874693,3.99870525,2898.5,2897.7,0.00370815]
[1644792874891,3.99870525,2898.5,2897.6,0.86308]
[1644792875096,3.99870525,2898.5,2898.3,0.01128292]
[1644792875392,3.30238359,2898.4,2898.3,0.01128292]
[1644792875592,0.496,2898.5,2898.3,0.01128292]
[1644792876091,0.496,2898.5,2897.7,0.30370815]
[1644792876292,0.496,2898.5,2898.3,0.01128292]
[1644792877091,0.496,2898.5,2897.7,1.72582]
[1644792877292,0.496,2898.5,2897.8,0.30370815]
[1644792877491,0.496,2898.5,2898.3,0.01128292]
[1644792878438,3.096,2898.5,2897.9,0.86299]
[1644792878638,3.096,2898.5,2898.3,0.01128292]
[1644792879040,2.6,2898.5,2898.3,0.01128292]
[1644792879239,2.6,2898.5,2898.3,1.73686292]
[1644792879439,2.6,2898.5,2898.3,0.01128292]
[1644792879637,2.6,2898.5,2898.3,0.3]
[1644792879838,2.6,2898.5,2898.3,0.01128292]
[1644792880038,2.6,2898.5,2898.3,0.01499107]
[1644792880637,2.6,2898.5,2898.3,0.01128292]
[1644792880838,2.6,2898.5,2897.6,0.87966449]
[1644792881039,2.6,2898.5,2898.3,0.01128292]
[1644792882087,2.6,2898.5,2897.8,0.90810846]
[1644792882088,2.6,2898.5,2897.9,0.00370815]
[1644792882390,1.03369588,2898.5,2898.3,0.01063034]
[1644792883289,1.03369588,2898.5,2897.9,0.30370815]
[1644792883488,1.03369588,2898.5,2898.3,0.01063034]
[1644792883691,1.89680588,2898.5,2898.3,0.01063034]
[1644792884490,1.89680588,2898.5,2897.9,0.30370815]
[1644792884690,1.89680588,2898.5,2898.3,0.01063034]
[1644792885495,0.1721,2898.4,2898.3,0.01063034]
[1644792885736,0.86317,2898.3,2897.9,0.30370815]
[1644792886537,1.72637,2898.3,2897.9,0.30370815]
[1644792886937,0.86317,2898.3,2897.9,0.30370815]
[1644792887137,0.86317,2898.3,2898.0,0.01067468]
[1644792887941,0.86317,2898.3,2897.9,0.30370815]
[1644792888337,5.0,2898.2,2898.0,0.01067459]
[1644792888541,1.35927,2898.1,2898.0,0.01067459]
[1644792889140,1.53137,2898.1,2898.0,0.01067459]
[1644792889389,0.8634676,2898.0,2897.3,0.00370815]
[1644792889690,0.86347,2897.8,2897.5,0.0427055]
[1644792889889,1.35947,2897.8,2897.5,0.0427055]
[1644792890291,0.1721,2897.7,2897.5,0.0427055]
[1644792890495,1.89909,2897.7,2896.6,0.00370815]
[1644792890695,6.35949,2897.6,2896.6,0.00370815]
[1644792891291,5.0,2897.4,2896.6,0.00370815]
[1644792891492,5.0,2896.9,2896.6,0.00370815]
[1644792891692,0.496,2896.8,2896.4,0.00370815]
[1644792891894,0.496,2896.8,2896.0,0.00370815]
[1644792892122,0.496,2896.8,2895.8,1.47307042]
[1644792892392,1.35977,2896.8,2895.6,0.17630815]
[1644792892591,1.35977,2896.8,2895.9,0.04092649]
[1644792892792,0.86375,2896.5,2895.8,0.00370815]
[1644792892996,1.35977,2896.8,2895.8,1.51454003]
[1644792893244,1.35977,2896.8,2896.1,0.01066967]
[1644792894037,1.35977,2896.8,2895.8,0.04520307]
[1644792894241,0.86367,2896.6,2896.3,0.01091692]
[1644792894641,4.23300869,2896.6,2896.3,0.01091692]
[1644792895240,0.86367,2896.6,2895.8,0.04520307]
[1644792895439,4.39219074,2896.5,2896.3,0.01091692]
[1644792895643,3.32182745,2896.4,2896.3,0.01091692]
[1644792895837,0.86373,2896.5,2896.3,0.01091692]
[1644792896540,3.34400134,2896.4,2895.8,0.04149492]
[1644792896893,3.38370815,2896.4,2896.3,0.01091701]
[1644792897094,0.86373,2896.5,2896.3,0.01091701]
[1644792897694,0.86373,2896.5,2895.8,0.04149492]
[1644792897993,3.35411774,2896.4,2896.3,0.01065299]
[1644792898203,0.86373,2896.5,2896.3,0.01065299]
[1644792898396,0.1721,2896.7,2896.3,0.01065299]
[1644792898600,3.7298,2897.4,2896.3,0.01065299]
[1644792898601,0.1721,2897.1,2896.3,0.01065299]
[1644792898795,0.1721,2897.3,2896.3,0.01065299]
[1644792898994,0.1721,2897.3,2895.9,0.00370815]
[1644792898995,0.496,2897.4,2896.1,0.00370815]
[1644792899196,0.1721,2897.2,2896.4,0.01065281]
[1644792899395,0.496,2897.1,2896.4,0.01065281]
[1644792899596,0.496,2897.0,2896.4,0.01065281]
[1644792899997,0.496,2897.0,2896.1,0.00370815]
[1644792900396,0.496,2897.0,2896.6,0.01065245]
[1644792900648,0.1721,2896.9,2896.6,0.01065245]
[1644792901037,1.35951,2897.3,2896.6,0.01065245]
[1644792901236,0.1721,2897.2,2896.2,0.00370815]
[1644792901441,1.0,2897.0,2896.1,1.76943705]
[1644792901638,0.1721,2896.9,2896.6,0.01067007]
[1644792902039,1.0,2897.0,2896.6,0.01067007]
[1644792902240,1.97695,2897.9,2897.5,0.56720114]
[1644792902241,0.5223,2897.8,2897.5,0.56720114]
[1644792902440,0.5223,2897.8,2897.5,0.57090929]
[1644792902640,0.5223,2897.8,2897.5,0.87090929]
[1644792903443,1.38566,2897.8,2897.5,0.87090929]
[1644792903941,1.38566,2897.8,2897.5,0.88157773]
[1644792904591,1.38566,2897.8,2897.5,0.58157773]
[1644792904790,1.38566,2897.8,2897.5,0.57090929]
[1644792904791,1.35944,2897.7,2897.5,0.57090929]
[1644792904988,0.1721,2897.6,2897.5,0.56720114]
[1644792905188,0.1721,2897.6,2897.5,0.57786837]
[1644792905789,0.1721,2897.6,2897.5,0.87786837]
[1644792906289,0.1721,2897.6,2897.5,0.86720114]
[1644792906490,0.796,2897.7,2897.5,0.86720114]
[1644792906690,0.796,2897.7,2897.5,0.86060164]
[1644792908547,0.796,2897.7,2897.5,0.76060164]
[1644792908741,0.796,2897.7,2897.5,0.7715107]
[1644792909543,0.496,2897.7,2897.5,0.7715107]
[1644792909743,0.496,2897.7,2897.5,0.76060164]
[1644792909946,0.496,2897.7,2897.5,0.7715107]
[1644792910947,0.496,2897.7,2897.5,0.76060164]
[1644792911151,0.496,2897.7,2897.5,0.7715107]
[1644792912195,0.496,2897.7,2897.5,0.76060164]
[1644792912395,0.496,2897.7,2897.5,0.77124686]
[1644792912794,5.0,2897.6,2897.5,0.77124686]
[1644792912996,5.496,2897.6,2897.5,0.77124686]
[1644792913197,1.496,2897.6,2897.5,0.72124686]
[1644792913395,1.496,2897.6,2897.5,0.56720114]
[1644792913396,0.496,2897.6,2897.5,0.56720114]
[1644792913596,1.35944,2897.6,2897.5,0.56720114]
[1644792913803,1.65944,2897.6,2897.5,0.56720114]
[1644792915651,1.65944,2897.6,2897.5,0.56344038]
[1644792919491,2.65944,2897.6,2897.5,0.56344038]
[1644792921094,0.75,2897.5,2897.4,1.121e-05]
[1644792921297,0.75,2897.5,2897.0,0.0404509]
[1644792921298,16.1141,2897.5,2897.0,0.0404509]
[1644792921498,5.8638,2897.1,2897.0,0.0404509]
[1644792921699,6.6598,2897.1,2896.2,0.00370815]
[1644792921893,5.0,2896.8,2896.2,0.00370815]
[1644792922094,0.496,2896.7,2896.2,0.00370815]
[1644792922295,2.3597757,2896.7,2896.2,1.47328118]
[1644792922501,2.3597757,2896.7,2896.2,1.77328118]
[1644792922696,5.0,2896.6,2896.3,1.46958135]
[1644792922895,2.35977,2896.5,2896.3,0.00370815]
[1644792923154,2.35977,2896.5,2896.2,1.46960816]
[1644792923340,2.35977,2896.5,2896.1,0.3]
[1644792923541,2.35977,2896.5,2896.2,1.46961285]
[1644792923742,2.35977,2896.5,2896.2,0.3]
[1644792923943,5.0,2896.4,2896.0,0.00370815]
[1644792924143,1.35997,2896.3,2895.9,1.46970824]
[1644792924347,1.35997,2896.3,2896.2,0.01067684]
[1644792924348,7.65997,2896.3,2896.2,0.01067684]
[1644792924543,2.65997,2896.3,2896.2,0.01067684]
[1644792924742,7.65997,2896.3,2896.2,0.01067684]
[1644792924943,8.5239061,2896.3,2896.2,0.01067684]
[1644792925142,8.5239061,2896.3,2896.2,7.684e-05]
[1644792925344,0.86409,2896.1,2895.6,0.00370815]
[1644792925643,2.2242,2896.0,2895.7,0.04271449]
[1644792925841,2.2242,2896.0,2895.7,0.04642264]
[1644792925842,3.2242,2896.0,2895.7,0.04642264]
[1644792926042,3.41491038,2895.9,2895.7,0.04642264]
[1644792926242,0.496,2895.8,2895.7,0.04271449]
[1644792926443,4.05014908,2895.8,2895.2,0.1726]
[1644792926743,0.86411,2895.7,2895.3,1.47353406]
[1644792926994,1.36012,2895.6,2895.3,1.47353406]
[1644792927194,3.68777612,2895.5,2895.3,0.00370815]
[1644792927395,3.68777612,2895.5,2895.2,1.46982591]
[1644792927396,4.18377612,2895.5,2895.2,1.46982591]
[1644792927594,4.18377612,2895.5,2894.9,1.46982591]
[1644792927790,4.18377612,2895.5,2895.0,1.46982591]
[1644792927990,4.18377612,2895.5,2895.1,1.47353406]
[1644792928191,4.18377612,2895.5,2894.7,0.81662195]
[1644792928192,0.496,2895.5,2895.2,1.46982591]
[1644792928391,0.496,2895.9,2895.3,1.46982591]
[1644792928595,0.496,2895.9,2895.4,1.47353406]
[1644792928793,0.496,2895.9,2895.5,1.46982591]
[1644792928994,0.496,2895.9,2895.5,0.00370815]
[1644792929191,0.86395,2895.8,2895.5,0.01437498]
[1644792929391,1.72786,2895.8,2895.5,0.01437498]
[1644792929597,1.16395,2895.8,2895.5,0.01066683]
[1644792929793,0.496,2895.7,2895.5,0.01066683]
[1644792930292,0.496,2895.7,2895.5,0.01083451]
[1644792930492,5.04967892,2895.6,2895.5,0.01083451]
[1644792930747,5.54567892,2895.6,2895.5,0.01083451]
[1644792930944,6.54567892,2895.6,2895.5,0.01083451]
[1644792931345,0.3,2895.5,2894.7,0.00370815]
[1644792931545,1.36011,2895.4,2895.0,0.04334491]
[1644792931947,4.74803393,2895.4,2895.0,0.04334491]
[1644792932150,0.86411,2895.3,2895.0,0.04334491]
[1644792932347,0.446,2895.2,2895.0,0.04334491]
[1644792932547,0.446,2895.2,2894.4,0.81662195]
[1644792932548,0.6181,2895.2,2894.5,0.30370815]
[1644792932748,0.8,2895.1,2894.4,0.1726]
[1644792932946,0.8,2895.1,2895.0,0.01083532]
[1644792933144,3.46037,2895.1,2895.0,0.01083532]
[1644792933744,3.46037,2895.1,2894.5,0.00373571]
[1644792934044,1.0,2895.0,2894.9,0.0100707]
[1644792934246,2.36037,2895.0,2894.9,0.0100707]
[1644792934698,6.69916509,2895.0,2894.9,0.0100707]
[1644792934890,6.69917279,2895.0,2894.9,0.0100707]
[1644792935097,2.22474,2895.0,2894.5,0.00373571]
[1644792935396,0.496,2895.0,2894.8,0.01007087]
[1644792935895,0.86402,2895.6,2894.8,0.01007087]
[1644792936095,0.496,2895.9,2894.8,0.01007087]
[1644792936293,0.86401,2895.5,2894.7,0.00373571]
[1644792936495,0.86401,2895.5,2894.8,0.01007095]
[1644792937093,1.36001,2895.5,2894.8,0.01007095]
[1644792937298,0.86406,2895.3,2894.7,0.00373571]
[1644792937692,0.86406,2895.3,2895.0,0.01011216]
[1644792938342,1.72818,2895.3,2895.0,0.01011216]
[1644792938541,1.72818,2895.3,2894.7,0.00373571]
[1644792938542,0.86414,2895.1,2894.7,0.00373571]
[1644792938742,0.86414,2895.1,2895.0,0.01011216]
[1644792939746,0.86414,2895.1,2894.4,0.17633571]
[1644792939950,0.86414,2895.1,2894.9,0.01011232]
[1644792940549,3.28818124,2895.0,2894.9,0.01011232]
[1644792940947,3.28818124,2895.0,2894.1,0.1726]
[1644792940948,0.86424,2894.9,2894.1,0.17633571]
[1644792941147,6.4807,2894.8,2894.4,0.04043904]
[1644792941349,6.7807,2894.8,2894.4,0.04043904]
[1644792941548,1.0,2894.7,2894.4,0.04043904]
[1644792941749,4.05409253,2894.6,2894.4,0.04043904]
[1644792942189,1.0,2894.5,2894.2,0.00373571]
[1644792942391,0.796,2894.5,2894.4,0.01010897]
[1644792943390,0.796,2894.5,2894.2,0.00373571]
[1644792943591,0.86433,2894.4,2894.3,0.01010905]
[1644792944593,0.86433,2894.4,2894.0,0.00373571]
[1644792944793,0.86433,2894.4,2894.2,0.01010972]
[1644792944991,0.796,2894.5,2894.2,0.01010972]
[1644792945393,1.796,2894.5,2894.2,0.01010972]
[1644792945652,0.496,2894.5,2894.2,0.01010972]
[1644792945845,3.8525996,2895.1,2894.1,0.86415]
[1644792946048,0.09192127,2895.1,2894.2,0.01384543]
[1644792946247,1.0,2895.0,2894.2,0.01384543]
[1644792946447,1.09192127,2895.1,2894.2,0.01384543]
[1644792946847,1.09192127,2895.1,2894.2,0.01010972]
[1644792947047,1.09192127,2895.1,2894.2,0.00373571]
[1644792947246,1.09192127,2895.1,2894.5,0.01010923]
[1644792947447,0.86416,2895.0,2894.5,0.01010923]
[1644792948249,1.16416,2895.0,2894.2,0.00373571]
[1644792948449,1.16416,2895.0,2894.6,0.01010907]
[1644792948450,0.86416,2895.0,2894.6,0.01010907]
[1644792948656,0.8641521,2895.5,2894.6,0.01010907]
[1644792948657,0.6681,2895.8,2894.6,0.01010907]
[1644792948849,0.496,2895.8,2894.6,0.01010907]
[1644792949049,3.5,2895.7,2894.7,1.46997467]
[1644792949249,0.496,2895.8,2894.8,0.00373571]
[1644792949492,0.86412,2895.7,2894.8,1.47371038]
[1644792949694,0.86404,2895.4,2895.1,0.01010835]
[1644792950500,0.86404,2895.4,2894.8,0.00373571]
[1644792950692,0.86404,2895.4,2894.7,1.47009265]
[1644792950893,1.16404,2895.4,2895.1,0.01010827]
[1644792951091,0.8641,2895.3,2895.1,0.01010827]
[1644792951692,0.8641,2895.3,2894.7,0.00373571]
[1644792951892,0.8641,2895.3,2894.7,1.47375057]
[1644792952092,0.8641,2895.3,2895.1,0.0101082]
[1644792952892,0.8641,2895.3,2894.8,0.00373571]
[1644792953158,0.8641,2895.3,2895.1,0.0101082]
[1644792953846,0.86402,2895.5,2895.1,0.0101082]
[1644792954046,0.86402,2895.5,2894.8,0.30373571]
[1644792954248,3.57241645,2895.4,2894.9,1.4700695]
[1644792954450,3.57241645,2895.4,2894.5,0.1726]
[1644792954451,5.30083645,2895.4,2895.1,0.0101082]
[1644792954650,1.90052,2895.4,2895.1,0.0101082]
[1644792954947,2.22442,2895.4,2895.1,0.0101082]
[1644792955347,0.86421,2895.3,2894.6,0.00373571]
[1644792955652,1.03631,2895.3,2895.1,0.01010814]
[1644792955852,2.03631,2895.3,2895.1,0.01010814]
[1644792956248,0.86421,2895.3,2895.1,0.01010814]
[1644792956448,1.86421,2895.3,2894.7,0.04043863]
[1644792956649,2.03631,2895.3,2894.8,1.47011776]
[1644792956893,2.03631,2895.3,2895.1,0.01010823]
[1644792957295,1.03631,2895.3,2895.1,0.01010823]
[1644792957495,2.03631,2895.3,2895.1,0.01010823]
[1644792957696,2.03631,2895.3,2894.5,0.00373571]
[1644792957895,2.03631,2895.3,2895.1,0.01010823]
[1644792958895,2.03631,2895.3,2894.6,0.00373571]
[1644792959196,2.03631,2895.3,2895.1,0.01010823]
[1644792960199,2.03631,2895.3,2894.7,0.00373571]
[1644792960399,1.86421,2895.3,2895.1,0.01010823]
[1644792960654,0.86421,2895.3,2895.2,1.470121]
[1644792960848,0.86421,2895.3,2895.2,1.770121]
[1644792962446,1.72823,2895.4,2895.2,1.770121]
[1644792962648,1.72823,2895.4,2895.3,1.470121]
[1644792962847,0.86411,2895.4,2895.3,1.770121]
[1644792963047,1.03621,2895.4,2895.3,1.77009797]
[1644792964049,0.86411,2895.4,2895.3,1.77009797]
[1644792964255,0.496,2896.0,2895.3,1.77009797]
[1644792964506,0.1721,2896.2,2895.4,3.50373571]
[1644792964702,0.746,2896.7,2895.4,1.47383368]
[1644792964703,0.9181,2896.7,2895.4,1.47383368]
[1644792964903,0.9181,2896.7,2895.5,1.47009797]
[1644792965203,0.6681,2896.7,2895.7,0.01010726]
[1644792965406,0.496,2896.7,2895.8,1.47009797]
[1644792965706,0.1721,2896.6,2895.8,1.47009797]
[1644792965905,1.1721,2897.0,2895.9,0.3]
[1644792966208,1.1721,2897.0,2896.0,1.47009797]
[1644792966404,0.1721,2897.0,2896.1,1.47009797]
[1644792966605,1.03574,2897.0,2896.2,0.86365]
[1644792966804,0.86364,2897.0,2896.2,1.16365]
[1644792967002,0.86364,2897.0,2896.2,0.3]
[1644792967203,0.86364,2897.0,2896.1,0.31010661]
[1644792967404,0.1721,2896.9,2896.2,1.46978543]
[1644792967603,0.86369,2896.8,2896.2,1.76978543]
[1644792967827,0.1721,2896.7,2896.2,0.3]
[1644792968252,0.1721,2896.7,2896.3,1.46974011]
[1644792968449,0.86369,2896.8,2896.1,1.16834384]
[1644792968647,0.86369,2896.8,2896.2,1.46971298]
[1644792969947,1.03579,2896.8,2896.2,1.46971298]
[1644792970546,0.86369,2896.8,2896.2,1.46971298]
[1644792970845,0.86369,2896.8,2896.2,1.46846472]
[1644792972199,0.86369,2896.8,2896.2,2.33211472]
[1644792972401,1.0,2896.9,2896.2,0.86365]
[1644792972601,1.0,2896.9,2896.2,4.35781932]
[1644792972899,0.496,2897.1,2896.2,3.48973002]
[1644792973099,0.496,2897.1,2896.2,3.21885061]
[1644792973600,0.496,2897.1,2896.1,2.03809091]
[1644792973800,0.496,2897.1,2896.4,0.8636]
[1644792974206,0.496,2897.1,2896.4,1.1636]
[1644792974904,0.1721,2897.0,2896.4,1.1636]
[1644792975105,1.03572,2897.0,2896.4,0.3]
[1644792975304,1.03572,2897.0,2896.2,0.86363]
[1644792975506,1.03572,2897.0,2896.2,1.16363]
[1644792975744,1.03572,2897.0,2896.2,4.34715254]
[1644792975943,1.03572,2897.0,2896.2,1.16363]
[1644792976145,1.03572,2897.0,2896.3,0.86361]
[1644792976545,0.1721,2897.0,2896.4,3.21707708]
[1644792976750,0.1721,2897.0,2896.4,3.21970752]
[1644792976944,0.1721,2897.0,2896.3,2.02705]
[1644792977145,1.496,2897.1,2896.4,3.35800813]
[1644792977146,1.0,2897.1,2896.4,3.35800813]
[1644792977345,0.1721,2897.3,2896.5,0.86355]
[1644792977545,0.01066922,2897.4,2896.6,4.00403168]
[1644792977751,0.01066922,2897.4,2896.6,0.3]
[1644792977946,0.01066922,2897.4,2896.6,2.02677]
[1644792978146,0.1721,2897.7,2896.7,4.66545264]
[1644792978346,0.25,2898.2,2896.7,4.83785264]
[1644792978347,0.1721,2897.9,2896.7,4.83785264]
[1644792978548,0.01068446,2897.4,2896.7,3.97450264]
[1644792978746,0.01068446,2897.4,2896.7,4.66549264]
[1644792979396,0.1721,2897.8,2896.7,4.66549264]
[1644792979596,1.1721,2898.1,2896.7,4.66549264]
[1644792979793,0.01068456,2897.4,2896.7,4.66549264]
[1644792979993,0.01068456,2897.4,2896.7,4.83789264]
[1644792980696,0.5,2898.0,2896.7,4.83789264]
[1644792980896,0.01068456,2897.4,2897.1,0.86328]
[1644792981095,0.01068456,2897.4,2897.2,3.24521072]
[1644792981295,0.01068456,2897.4,2897.2,3.54521072]
[1644792981496,0.01068456,2897.4,2897.2,0.3]
[1644792981696,0.5,2898.0,2897.1,1.16328]
[1644792982097,0.01068403,2897.4,2897.1,1.16328]
[1644792982896,0.5,2898.0,2897.2,1.7265]
[1644792983156,0.01068396,2897.4,2897.3,0.3]
[1644792984145,1.0354,2898.1,2897.3,0.3]
[1644792984346,0.01068395,2897.5,2897.4,0.86327]
[1644792984550,0.01068395,2897.5,2897.4,1.16327]
[1644792985348,1.0354,2898.1,2897.4,1.16327]
[1644792985549,0.01068379,2897.6,2897.5,0.3]
[1644792986556,1.0354,2898.1,2897.5,3.51212472]
[1644792986557,0.1721,2898.1,2897.5,3.51212472]
[1644792986756,0.01068368,2897.7,2897.5,4.37529472]
[1644792987000,0.01068368,2897.7,2897.6,3.29464285]
[1644792987204,0.01068368,2897.7,2897.6,3.59464285]
[1644792987598,0.01068368,2897.7,2897.6,3.76704285]
[1644792987900,0.1723,2899.0,2898.0,1.7259]
[1644792988097,0.1724,2899.4,2898.1,3.64989554]
[1644792988295,0.1724,2899.4,2898.1,3.94989554]
[1644792988296,0.1724,2899.2,2898.1,3.94989554]
[1644792988496,0.8629841,2899.4,2898.1,3.94989554]
[1644792988497,0.1724,2899.3,2898.1,3.94989554]
[1644792988998,0.86297,2899.2,2898.1,2.02595]
[1644792989198,0.01068185,2898.8,2898.1,1.72595]
[1644792989397,0.01068185,2898.8,2898.2,0.3]
[1644792989598,0.01068185,2898.8,2898.2,3.49214513]
[1644792989803,0.01068185,2898.8,2898.2,3.50427215]
[1644792989997,0.01068185,2898.8,2898.2,1.16302]
[1644792990200,0.1724,2899.1,2898.2,1.16302]
[1644792990497,0.01068214,2898.6,2898.2,1.16302]
[1644792991349,1.03539,2899.1,2898.2,1.16302]
[1644792991650,0.0106823,2898.5,2898.2,1.16302]
[1644792992049,0.0106823,2898.5,2898.2,4.36937226]
[1644792992650,0.1724,2899.1,2898.2,4.36937226]
[1644792992951,0.01068238,2898.5,2898.2,4.36803096]
[1644792993753,0.1719,2899.4,2898.2,4.36803096]
[1644792993952,0.1716,2899.5,2898.2,4.36803096]
[1644792994252,0.01068231,2898.5,2898.2,4.36803096]
[1644792994506,0.01068231,2898.5,2898.3,20.7524]
[1644792994704,0.1711,2900.0,2898.5,0.82136462]
[1644792995009,0.1711,2900.0,2898.8,0.86265]
[1644792995204,0.1708,2900.4,2898.9,4.74716587]
[1644792995405,0.1708,2900.4,2899.4,0.86252]
[1644792995604,0.1708,2900.4,2899.5,3.40447598]
[1644792995806,0.1708,2900.4,2899.5,3.70447598]
[1644792996005,0.25,2900.7,2899.5,0.3]
[1644792996204,0.496,2900.8,2899.3,3.56721698]
[1644792996205,0.496,2900.8,2899.6,0.1724]
[1644792996404,0.496,2900.8,2899.4,0.1724]
[1644792996607,0.496,2900.8,2899.7,0.86251]
[1644792996608,0.01126206,2900.1,2899.7,0.86251]
[1644792996806,0.01126206,2900.1,2899.7,4.01341124]
[1644792997006,0.01126206,2900.1,2899.7,1.16251]
[1644792997207,0.01126206,2900.1,2899.7,4.39718741]
[1644792997407,0.1719,2900.7,2899.7,4.39718741]
[1644792997610,0.1719,2900.7,2899.7,3.53467741]
[1644792997807,0.01126215,2900.0,2899.9,0.86253]
[1644792998013,0.01126215,2900.0,2899.9,4.56003341]
[1644792998255,0.01126215,2900.0,2899.9,4.86003341]
[1644792998650,7.47,2901.4,2899.9,4.86003341]
[1644792998851,7.47,2901.4,2900.4,0.86223]
[1644792999053,7.47,2901.4,2900.6,0.86223]